Cogmind - Beta 14 @@@ ROGUE MODE // 2024.12.16 @ 23:26:36 Player: Alien Result: Destroyed by Autobeam Turret with Autobeam Performance ------------- Evolutions (0) 0 Regions Visited (2) 400 Robots Destroyed (24) 120 Value Destroyed (651) 651 Prototype IDs (0) 0 Alien Tech Used (0) 0 Bonus (0) 0 TOTAL SCORE: 1171 Bonus ------- None Cogmind --------- Core Integrity 0/250 Matter 300/300 Energy 199/200 System Corruption 0% Temperature Cool (12) Movement Core (200) Ox3 Location -10/Subcaves Parts ------- > --- POWER (1) -------- Subdweller Power Source > --- PROPULSION (2) --- (None) > --- UTILITY (2) ------ (None) > --- WEAPON (2) ------- Subdweller Laser Light Assault Rifle > --- INVENTORY (5) ---- Huge Storage Unit Large Matter Pod (150) Subdweller Optics Peak State ------------ > --- POWER ------------ Light Nuclear Core > --- PROPULSION ------- Light Treads Light Treads > --- UTILITY ---------- Large Storage Unit Seismic Detector > --- WEAPON ----------- Assault Rifle Light Assault Rifle > --- INVENTORY -------- Light Ion Engine Light Treads Light Treads Huge Storage Unit Large Matter Pod Large Matter Pod Assault Rifle Light Cannon Grenade Launcher Grenade Launcher [Rating: 10] Favorites ----------- Power Light Nuclear Core Engine Subdweller Power Source Power Core Light Nuclear Core Propulsion Light Treads Treads Light Treads Utility Large Storage Unit Device Seismic Detector Storage Large Storage Unit Protection Scrap Shield Weapon Assault Rifle Energy Gun Subdweller Laser Ballistic Gun Assault Rifle Ballistic Cannon Light Cannon Launcher Grenade Launcher Build | -11 -10 -10 ------- Run | Yrd Mat Sub Slots Evolved . | . . . Power . | . . . Propulsion . | . . . Utility . | . . . Weapon . | . . . Parts Attached 23 | 6 6 11 Power 3 | 1 1 1 Engine 2 | 1 . 1 Core 1 | . 1 . Reactor . | . . . Propulsion 6 | 2 2 2 Treads 6 | 2 2 2 Leg . | . . . Wheel . | . . . Hover . | . . . Flight . | . . . Utility 5 | 1 3 1 Device 2 | . 2 . Storage 2 | 1 1 . Processor . | . . . Hackware . | . . . Protection 1 | . . 1 Artifact . | . . . Weapon 9 | 2 . 7 Energy Gun 1 | . . 1 Energy Cannon . | . . . Ballistic Gun 5 | 2 . 3 Ballistic Cannon 1 | . . 1 Launcher 2 | . . 2 Special Weapon . | . . . Impact Weapon . | . . . Slashing Weapon . | . . . Piercing Weapon . | . . . Special Melee Weapon . | . . . Unidentified Prototypes . | . . . Parts Lost 12 | . . 12 Power 1 | . . 1 Propulsion 4 | . . 4 Utility 1 | . . 1 Weapon 6 | . . 6 Highest Loss Streak 6 | . . 6 To Critical Strikes 1 | . . 1 Average Slot Usage (%) 75 | . 89 58 Engine 2 | . 1 3 Core 8 | . 12 2 Treads 22 | . 28 16 Device 2 | . 4 . Storage 11 | . 14 8 Protection 2 | . . 4 Energy Gun 2 | . . 4 Ballistic Gun 20 | . 28 11 Ballistic Cannon 2 | . . 5 Peak Build Rating 10 | 6 10 10 Average Rating 7 | 5 8 6 On Entrance 5 | . 6 10 Naked Turns 1 | . . 1 Heaviest Build 29 | 11 29 29 Greatest Support 40 | 40 40 40 Greatest Overweight (x) 8 | 3 . 8 Average Overweight (x) . | . . 1 Largest Inventory Capacity 15 | 8 15 15 Average Capacity 10 | 7 10 11 Most Carried 15 | 1 12 15 Average Carried 7 | . 6 9 Final Capacity 15 | 8 15 5 Final Carried 12 | 1 12 3 Class Distribution -------------------- 89% | Mutant 10% | Subdweller-Mutant Dominant Class ---------------- Mutant | -10/Materials Mutant | -10/Subcaves Resources | -11 -10 -10 ----------- Run | Yrd Mat Sub Matter Collected 1087 | 202 602 283 Remotely . | . . . Salvage Created 767 | . 509 258 Parts 50 | . 29 21 Haulers Intercepted 2 | . 2 . Recyclers Shooed 1 | . 1 . Parts Field Recycled . | . . . Retrieved Matter . | . . . Parts Self-Destructed 10 | . . 10 Prevented . | . . . Kills | -11 -10 -10 ------- Run | Yrd Mat Sub Combat Hostiles Destroyed 19 | . 7 12 Guns 13 | . 7 6 AOE 6 | . . 6 Classes Destroyed 7 | . 5 2 Worker 1 | . 1 . Hauler 2 | . 2 . Recycler 1 | . 1 . Watcher 1 | . 1 . Swarmer 4 | . . 4 Grunt 7 | . 7 . Subdweller 8 | . . 8 Best Kill Streak 6 | . 4 6 Combat Bots Only 6 | . 4 6 Max Kills in Single Turn 3 | . 1 3 Gunslinging . | . . . Exploded 3 | . . 3 Melee . | . . . Uniques/NPCs Destroyed . | . . . Combat | -11 -10 -10 -------- Run | Yrd Mat Sub Hostile Shots Fired 156 | . 51 105 Missed 33 | . 12 21 Damage Taken 1827 | . 478 1349 Core 252 | . 82 170 Absorbed by Shields . | . . . Core Remaining (%) 100 | 100 . . Volleys Fired 88 | . 49 39 Largest 2 | . 2 2 Hottest 60 | . 40 60 Shots Fired 145 | . 98 47 Gun 121 | . 98 23 Cannon 14 | . . 14 Launcher 10 | . . 10 Special . | . . . Kinetic 122 | . 98 24 Thermal 13 | . . 13 Explosive 10 | . . 10 Electromagnetic . | . . . Robot Hit Streak 13 | . 13 9 Robot Miss Streak 5 | . 5 2 Penetration Max . | . . . Secondary Targets 2 | . 2 . Max Gunslinging Chain 1 | . 1 . Shots Hit Robots 107 | . 71 36 Core Hits 51 | . 29 22 Critical Kills . | . . . Critical Parts Destroyed . | . . . Critical Strikes . | . . . Melee Attacks . | . . . Impact . | . . . Slashing . | . . . Piercing . | . . . Sneak Attacks . | . . . Combat Hostiles . | . . . Follow-up Attacks . | . . . Damage Inflicted 2460 | . 792 1668 Guns 1104 | . 789 315 Cannons 144 | . . 144 Explosions 1209 | . . 1209 Melee . | . . . Ramming 3 | . 3 . Kinetic 1020 | . 789 231 Thermal 228 | . . 228 Explosive 1209 | . . 1209 Electromagnetic . | . . . Impact . | . . . Slashing . | . . . Piercing . | . . . Highest Corruption . | . . . Average Corruption . | . . . Corruption Purged . | . . . Corruption Blocked . | . . . Overload Shots . | . . . Overflow Damage 19 | . . 19 Projectiles . | . . . Explosions 19 | . . 19 Melee . | . . . Knockbacks 3 | . . 3 Impact . | . . . Kinetic 3 | . . 3 Secondary . | . . . Self-Inflicted Damage 22 | . . 22 Shots 2 | . . 2 Rammed 1 | . 1 . Targets Rammed 1 | . 1 . Kicked . | . . . Crushed . | . . . Highest Temperature 67 | . 67 . Average Temperature 17 | . 17 . Received Heat Transfer 537 | . 270 267 Siege Activations . | . . . Robots Corrupted . | . . . Combat Hostiles . | . . . Parts Fried . | . . . Impact Corruptions . | . . . Robots Melted . | . . . Combat Hostiles . | . . . Parts Melted . | . . . Heat Transferred 275 | . . 275 Parts Sabotaged . | . . . Parts Stolen . | . . . Parts Stripped . | . . . Power Chain Reactions . | . . . Alert | -11 -10 -10 ------- Run | Yrd Mat Sub Peak Influence 217 | . 217 . Initial . | . . . Average 89 | . 98 . Maximum Alert Level 1 | . 1 . Low Security (%) 94 | 100 94 . Level 1 5 | . 5 . Level 2 . | . . . Level 3 . | . . . Level 4 . | . . . Level 5 . | . . . High Security . | . . . Max Security . | . . . Squads Dispatched 1 | . 1 . Investigation . | . . . Extermination . | . . . Reinforcement 1 | . 1 . Assault . | . . . Garrison . | . . . Intercept . | . . . Searches Triggered . | . . . Construction Impeded . | . . . Haulers Reinforced . | . . . Active Scanning Responses . | . . . Cargo Convoy Interrupts . | . . . Stealth | -11 -10 -10 --------- Run | Yrd Mat Sub Distress Signals 3 | . 3 . Communications Jammed . | . . . Distress Signals . | . . . Times Spotted 38 | . 20 18 Peak Tracking Total 7 | . 4 7 Tactical Retreats 2 | . . 2 Traps | -11 -10 -10 ------- Run | Yrd Mat Sub Traps Triggered . | . . . Indirectly . | . . . Trap Hack Attempts . | . . . Triggered . | . . . Disarmed . | . . . Reprogrammed . | . . . Reused . | . . . Traps Extracted . | . . . Installed . | . . . Triggered . | . . . Machines | -11 -10 -10 ---------- Run | Yrd Mat Sub Machines Disabled . | . . . Max in Single Turn . | . . . Machines Repaired . | . . . Machines Dismantled . | . . . Machines Sabotaged . | . . . Overloaded Fab Kills . | . . . Hacking | -11 -10 -10 --------- Run | Yrd Mat Sub Machines Accessed 3 | . 3 . Terminals 3 | . 3 . Fabricators . | . . . Repair Stations . | . . . Recycling Units . | . . . Scanalyzers . | . . . Garrison Access . | . . . Total Hacks 6 | . 6 . Successful 1 | . 1 . Failed 5 | . 5 . Catastrophic . | . . . Database Lockouts . | . . . Manual 7 | . 7 . Terminals 6 | . 6 . Fabricators . | . . . Repair Stations . | . . . Recycling Units . | . . . Scanalyzers . | . . . Garrison Access . | . . . Terminal Hacks 1 | . 1 . Robot Analysis 1 | . 1 . Fabricator Hacks . | . . . Repair Station Hacks . | . . . Recycling Unit Hacks . | . . . Scanalyzer . | . . . Garrison Access Hacks . | . . . Unauthorized Hacks . | . . . Terminals . | . . . Fabricators . | . . . Repair Stations . | . . . Recycling Units . | . . . Scanalyzers . | . . . Garrison Access . | . . . Data Cores Recovered . | . . . Used . | . . . Hacking Detections 3 | . 3 . Full Trace Events . | . . . Feedback Events . | . . . Feedback Blocked . | . . . Robot Schematics Acquired . | . . . Robots Built . | . . . Authchips . | . . . Time . | . . . Total Robot Build Rating . | . . . Part Schematics Acquired . | . . . Parts Built . | . . . Authchips . | . . . Time . | . . . Total Part Build Rating . | . . . Parts Repaired . | . . . Time . | . . . Parts Recycled . | . . . Recycled Matter . | . . . Retrieved Matter . | . . . Retrieved Components . | . . . Parts Scanalyzed . | . . . Part Schematics Acquired . | . . . Parts Damaged . | . . . Bothacking | -11 -10 -10 ------------ Run | Yrd Mat Sub Used RIF Installer . | . . . Robots Hacked . | . . . Non-combat . | . . . Combat . | . . . Robot Hacks Applied . | . . . Relay Couplers Released . | . . . Fabnet Peak Effective % . | . . . Robots Rewired . | . . . Allies Hacked . | . . . Hacks Repelled . | . . . Allies | -11 -10 -10 -------- Run | Yrd Mat Sub Total Allies . | . . . Largest Group . | . . . Highest-Rated Group . | . . . Highest-Rated Ally . | . . . Total Orders . | . . . Ally Attacks . | . . . Total Damage . | . . . Kills . | . . . Allies Corrupted . | . . . Allies Melted . | . . . Intel | -11 -10 -10 ------- Run | Yrd Mat Sub Robot Analysis Total 1 | . 1 . Derelict Logs Recovered . | . . . Drone Launches . | . . . Drone Recoveries . | . . . Exploration | -11 -10 -10 ------------- Run | Yrd Mat Sub Turns Passed 1439 | 75 743 621 Spaces Moved 624 | 45 331 248 Core 70 | 23 . 47 Treads 554 | 22 331 201 Legs . | . . . Wheels . | . . . Hover . | . . . Flight . | . . . Fastest Speed 50 | 50 160 150 Average Speed 177 | 146 160 207 Slowest Speed 450 | 200 160 450 Overloaded Moves . | . . . Propulsion Burnouts . | . . . Robots Hopped . | . . . Cave-ins Triggered . | . . . Exploration Rate (%) 22 | 3 42 21 Regions Visited 2 Branch Regions 1 Pre-discovered Areas . | . . . Known Exits Taken . | . . . Unknown Exits Taken 2 | 1 1 . Scrap Searched . | . . . Spaces Dug . | . . . Terrain Destroyed 31 | . . 31 Melee . | . . . Projectile . | . . . AOE 31 | . . 31 Terrain Rammed . | . . . Walls Destroyed . | . . . Machines Disabled . | . . . Actions | -11 -10 -10 --------- Run | Yrd Mat Sub Total 816 | 51 457 308 Wait 56 | . 55 1 Move 622 | 44 330 248 Hop . | . . . Pick Up 16 | 1 11 4 Fast Attach 11 | 6 2 3 Attach 7 | . . 7 Detach 1 | . . 1 Swap 5 | . 4 1 Drop 7 | . 5 2 Fire 88 | . 49 39 Melee . | . . . Ram . | . . . Kick . | . . . Crush 1 | . 1 . Escape Stasis . | . . . Rewire . | . . . Trap . | . . . Miscellaneous 2 | . . 2 Route ------- -11/Scrapyard -10/Materials (discovered 3 exits: [*Mat x2] / [*Sub]) -10/Subcaves (discovered 2 exits: [*Mat] / [*Rec]) History --------- Turn | Location | Event 11 | -11/Scrapyard | Discovered new exit (range 16) 76 | -11/Scrapyard | Entered Materials 308 | -10/Materials | Discovered new exit (range 16) 310 | -10/Materials | Build established: Mutant 407 | -10/Materials | Discovered new exit (range 6) 590 | -10/Materials | Discovered new exit (range 3) 819 | -10/Materials | Entered Subcaves 939 | -10/Subcaves | Ambushed by swarm of Subdwellers 944 | -10/Subcaves | Ambushed by Subdwellers from Twisted Machinery 944 | -10/Subcaves | Ambushed by Subdwellers from Twisted Machinery 945 | -10/Subcaves | Discovered new exit (range 13) 959 | -10/Subcaves | Core integrity fell below 50% 973 | -10/Subcaves | A swath of the cavern ceiling suddenly collapsed 983 | -10/Subcaves | Lost 4 allies 998 | -10/Subcaves | Lost 5 parts (1p1n3w) 1190 | -10/Subcaves | Core integrity fell below 20% 1244 | -10/Subcaves | Lost 6 parts (3n3w) 1438 | -10/Subcaves | Discovered new exit (range 15) 1440 | -10/Subcaves | Destroyed by Autobeam Turret with Autobeam Last Messages --------------- 01257_ Subatomizers dissect the Sub. Optics. 01275_ Dropped Lrg. Matter Pod. 01276_ Extracted 125 matter. 01280_ Acquired Sub. Power Source. 01290_ Acquired Sub. Optics. 01291_ Acquired 18 matter. 01296_ Subatomizers dissect the Sensor Array. 01415_ S-10 Pest destroyed. 01420_ Flight Unit fries itself beyond repair. 01423_ S-10 Pest destroyed. 01425_ Destroyed Flight Unit. 01428_ Scrap Shield destroyed. 01429_ S-10 Pest destroyed. 01434_ Flight Unit fries itself beyond repair. 01434_ Lgt. Assault Rifle fries itself beyond repair. 01434_ Acquired Lgt. Assault Rifle. 01436_ Acquired 10 matter. 01438_ EXIT=FOUND 01439_ Lgt. Ion Engine fries itself beyond repair. 01439_ Flight Unit fries itself beyond repair. Map ----- +----------------------------------------------------+ | ????????"????????????????????????????????????????? | | ???????? ?#? ???????????????????????????????????? | | ?????? ? ???????????????????????????????????? | | ???? ? "" #???????????????????????????????????? | | ????? " "" #???????????????????????????????????? | | ???? " "" #???????????????????????????????????? | | ????"" ????????????????????????????????????? | | ????#"" #????????????????????????????????????? | | ?#### #????????????????????????????????????? | | ## ## #????????????#???????????????????????? | | # ## ##???????????